bitfinex-derivatives/quotes_BTCF0:USTF0_20251208
["timestamp","ask_amount","ask_price","bid_price","bid_amount"]
[1765158812784,0.09148423,91166.0,91165.0,0.04626]
[1765158812983,0.09248423,91166.0,91165.0,0.04626]
[1765158813184,0.102179,91159.0,91158.0,0.08834]
[1765158813383,0.09121,91159.0,91158.0,0.19834]
[1765158814082,0.09121,91159.0,91158.0,0.48834]
[1765158814278,0.09248423,91166.0,91165.0,0.08834]
[1765158814676,0.09148423,91166.0,91165.0,0.08834]
[1765158815482,0.09248423,91166.0,91165.0,0.08834]
[1765158815887,0.00127423,91166.0,91165.0,0.08834]
[1765158816890,0.09248423,91166.0,91165.0,0.08834]
[1765158819592,0.09248423,91166.0,91157.0,0.0993091]
[1765158819593,0.09121,91158.0,91157.0,0.0993091]
[1765158819795,0.09121,91158.0,91157.0,0.1093091]
[1765158819992,0.09121,91158.0,91157.0,0.5293091]
[1765158820197,0.09121,91158.0,91157.0,0.2793091]
[1765158820693,0.09121,91158.0,91157.0,0.2813091]
[1765158820888,0.04702,91158.0,91157.0,0.2813091]
[1765158821098,0.00027423,91166.0,91157.0,0.2813091]
[1765158821099,0.1021783,91165.0,91164.0,0.08834]
[1765158822497,0.09121,91165.0,91164.0,0.08834]
[1765158822702,0.00027423,91166.0,91165.0,0.0923282]
[1765158823088,0.00027423,91166.0,91165.0,0.4823282]
[1765158824394,0.00016462,91173.0,91172.0,0.0923274]
[1765158824589,0.00016462,91173.0,91172.0,0.4823274]
[1765158825097,0.01384,91197.0,91179.0,0.02706]
[1765158825396,0.01384,91197.0,91188.0,0.10842]
[1765158825397,0.0961454,91189.0,91188.0,0.10842]
[1765158825900,0.0109654,91189.0,91188.0,0.10842]
[1765158826094,0.0961454,91189.0,91188.0,0.10842]
[1765158826491,0.0560754,91189.0,91188.0,0.10842]
[1765158827102,0.0540754,91189.0,91188.0,0.10842]
[1765158827401,0.008,91189.0,91188.0,0.10842]
[1765158827789,0.04411,91189.0,91188.0,0.10842]
[1765158827990,0.09018,91189.0,91188.0,0.10842]
[1765158828400,0.08618,91189.0,91188.0,0.10842]
[1765158828697,0.08918,91189.0,91179.0,0.09494271]
[1765158828894,0.08918,91189.0,91179.0,0.00016452]
[1765158828895,0.08518,91180.0,91179.0,0.00016452]
[1765158830293,0.08618,91180.0,91179.0,0.10858452]
[1765158830494,0.08618,91180.0,91179.0,0.00016452]
[1765158830900,0.09118,91180.0,91179.0,0.00016452]
[1765158831096,0.09118,91180.0,91179.0,0.08152452]
[1765158831301,0.09118,91180.0,91179.0,0.10858452]
[1765158831896,0.08718,91180.0,91179.0,0.10858452]
[1765158832204,0.08818,91180.0,91179.0,0.10858452]
[1765158832400,0.003,91180.0,91179.0,0.10858452]
[1765158832595,0.002,91180.0,91179.0,0.10858452]
[1765158832801,0.04511,91180.0,91179.0,0.10858452]
[1765158833000,0.002,91180.0,91179.0,0.10858452]
[1765158833201,0.08718,91180.0,91179.0,0.10858452]
[1765158833400,0.08718,91180.0,91179.0,0.08152452]
[1765158833905,0.11107556,91180.0,91179.0,0.00016452]
[1765158834106,0.11107556,91180.0,91153.0,0.05815994]
[1765158834107,0.08518,91154.0,91153.0,0.05815994]
[1765158834401,0.08518,91154.0,91136.0,0.08136]
[1765158834402,0.08518,91137.0,91136.0,0.08136]
[1765158834597,0.0961507,91144.0,91143.0,0.08136]
[1765158834803,0.12005808,91144.0,91143.0,0.08136]
[1765158835107,0.12005808,91144.0,91143.0,0.04216]
[1765158835495,0.12005808,91144.0,91143.0,0.08136]
[1765158835893,0.12105808,91144.0,91143.0,0.08136]
[1765158836502,0.12005808,91144.0,91143.0,0.08136]
[1765158836694,0.12105808,91144.0,91143.0,0.08136]
[1765158837189,0.21405808,91144.0,91143.0,0.04216]
[1765158837390,0.12405808,91144.0,91143.0,0.07948]
[1765158840314,0.00016452,91153.0,91152.0,0.0870898]
[1765158840603,0.07681,91171.0,91170.0,0.0388]
[1765158840806,0.07681,91165.0,91164.0,0.0870883]
[1765158841111,0.07681,91165.0,91164.0,0.07612]
[1765158841303,0.0109668,91177.0,91165.0,0.0109682]
[1765158841499,0.07681,91177.0,91176.0,0.07612]
[1765158842005,0.03962,91177.0,91176.0,0.07612]
[1765158842513,0.07681,91177.0,91176.0,0.07612]
[1765158842912,0.07781,91177.0,91176.0,0.07612]
[1765158843812,0.001,91177.0,91176.0,0.07612]
[1765158844004,0.001,91177.0,91176.0,0.07712]
[1765158844203,0.00016452,91180.0,91179.0,0.07612]
[1765158845313,0.00016452,91180.0,91179.0,0.50612]
[1765158845700,0.00016452,91180.0,91179.0,0.26612]
[1765158845901,0.00016452,91180.0,91179.0,0.26712]
[1765158846509,0.00016452,91180.0,91179.0,0.27212]
[1765158847111,0.00016452,91180.0,91179.0,0.27312]
[1765158847409,0.09934452,91180.0,91179.0,0.008]
[1765158847603,0.09934452,91180.0,91179.0,0.002]
[1765158847911,0.09934452,91180.0,91179.0,0.009]
[1765158848502,0.07697452,91180.0,91179.0,0.08512]
[1765158848898,0.07697452,91180.0,91179.0,0.08412]
[1765158849101,0.07697452,91180.0,91179.0,0.07712]
[1765158849306,0.00016452,91180.0,91179.0,0.08012]
[1765158849912,0.00016452,91180.0,91179.0,0.08112]
[1765158850512,0.00016452,91180.0,91179.0,0.48112]
[1765158851013,0.00016452,91180.0,91179.0,0.08212]
[1765158851213,0.07697452,91180.0,91179.0,0.08212]
[1765158852106,0.07697452,91180.0,91179.0,0.08312]
[1765158852308,0.07697452,91180.0,91179.0,0.07812]
[1765158852616,0.07697452,91180.0,91179.0,0.08312]
[1765158852912,0.07697452,91180.0,91179.0,0.07812]
[1765158853103,0.07697452,91180.0,91179.0,0.08312]
[1765158853613,0.07697452,91180.0,91179.0,0.08112]
[1765158854111,0.07697452,91180.0,91179.0,0.07712]
[1765158854308,0.07697452,91180.0,91179.0,0.08012]
[1765158854619,0.07697452,91180.0,91179.0,0.08112]
[1765158856214,0.00016452,91180.0,91179.0,0.43112]
[1765158856407,0.00016452,91180.0,91179.0,0.08112]
[1765158856607,0.00016452,91180.0,91179.0,0.16112]
[1765158857918,0.00016452,91180.0,91179.0,0.43112]
[1765158859808,0.00016452,91180.0,91179.0,0.4420865]
[1765158860009,0.01123741,91206.0,91205.0,0.07511]
[1765158860217,0.03931411,91206.0,91205.0,0.07511]
[1765158860712,0.07925411,91206.0,91205.0,0.07511]
[1765158861410,0.08225411,91206.0,91205.0,0.07511]
[1765158861918,0.07898,91197.0,91196.0,0.00016452]
[1765158862310,0.07898,91197.0,91196.0,0.03904452]
[1765158863122,0.07898,91197.0,91196.0,0.04004452]
[1765158863526,0.32898,91197.0,91196.0,0.04004452]
[1765158863713,0.07898,91197.0,91196.0,0.00116452]
[1765158864619,0.50898,91197.0,91196.0,0.00116452]
[1765158865224,0.07898,91179.0,91178.0,0.0109665]
[1765158866229,0.07898,91179.0,91178.0,0.0498465]
[1765158866413,0.07898,91179.0,91178.0,0.0860765]
[1765158866620,0.07898,91179.0,91178.0,0.07511]
[1765158866926,0.0109664,91180.0,91174.0,0.010967]
[1765158866927,0.07898,91175.0,91174.0,0.010967]
[1765158867325,0.07898,91171.0,91170.0,0.17618569]
[1765158867522,0.07898,91171.0,91170.0,0.07511]
[1765158867825,0.0899476,91170.0,91169.0,0.00016452]
[1765158868525,0.1131876,91170.0,91169.0,0.00016452]
[1765158868828,0.3131876,91170.0,91169.0,0.00016452]
[1765158869016,0.3131876,91170.0,91169.0,0.00216452]
[1765158869420,0.2899476,91170.0,91169.0,0.03904452]
[1765158869618,0.2899476,91170.0,91169.0,0.04104452]
[1765158870019,0.2899476,91170.0,91169.0,0.00216452]
[1765158870320,0.0954976,91170.0,91169.0,0.00216452]
[1765158870916,0.0899476,91170.0,91169.0,0.04104452]
[1765158871116,0.0899476,91170.0,91169.0,0.03904452]
[1765158872828,0.07898,91170.0,91169.0,0.07527452]
[1765158876526,0.24898,91170.0,91169.0,0.07527452]
[1765158876721,0.24898,91170.0,91169.0,0.03904452]
[1765158876928,0.2606,91170.0,91169.0,0.00016452]
[1765158877828,0.2606,91170.0,91169.0,0.03904452]
[1765158878727,0.07898,91170.0,91169.0,0.07527452]
[1765158879427,0.07898,91170.0,91169.0,0.08624222]
[1765158880617,0.03904,91170.0,91169.0,0.08624222]
[1765158880818,0.089947,91176.0,91175.0,0.07511]
[1765158882924,0.0824376,91170.0,91169.0,0.07083452]
[1765158883128,0.0824376,91170.0,91169.0,0.00016452]
[1765158884228,0.0824376,91170.0,91169.0,0.07083452]
[1765158884532,0.0824376,91170.0,91169.0,0.07183452]
[1765158884727,0.0479171,91174.0,91173.0,0.07067]
[1765158885038,0.0479167,91178.0,91177.0,0.07067]
[1765158885233,0.0824367,91178.0,91177.0,0.07067]
[1765158886130,0.00016452,91188.0,91176.0,0.02061]
[1765158886131,0.0824359,91185.0,91184.0,0.02272]
[1765158886432,0.03695,91185.0,91184.0,0.09339]
[1765158886824,0.07147,91185.0,91184.0,0.09339]
[1765158887734,0.07447,91185.0,91184.0,0.09339]
[1765158887935,0.07447,91185.0,91184.0,0.07067]
[1765158888138,0.0824369,91176.0,91175.0,0.0997847]
[1765158888435,0.07147,91173.0,91172.0,0.07067]
[1765158890335,0.07147,91170.0,91169.0,0.00016452]
[1765158891538,0.07147,91170.0,91169.0,0.07083452]
[1765158892325,0.07247,91170.0,91169.0,0.07083452]
[1765158893540,0.07247,91170.0,91169.0,0.08180222]
[1765158893744,0.07147,91170.0,91169.0,0.08180222]
[1765158894034,0.07147,91170.0,91169.0,0.07083452]
[1765158895037,0.07147,91153.0,91152.0,0.0291147]
[1765158895230,0.07147,91146.0,91145.0,0.0660647]
[1765158895429,0.07147,91146.0,91145.0,0.03695]
[1765158895627,0.06563063,91146.0,91145.0,0.03695]
[1765158896027,0.06563063,91146.0,91145.0,0.07067]
[1765158896740,0.03111063,91146.0,91145.0,0.07067]
[1765158896930,0.0824399,91152.0,91151.0,0.07067]
[1765158897135,0.00016452,91155.0,91143.0,0.02272]
[1765158897136,0.00016452,91155.0,91154.0,0.06732]
[1765158897342,0.06661452,91155.0,91154.0,0.06732]
[1765158898043,0.00016452,91155.0,91154.0,0.06732]
[1765158898241,0.00016452,91155.0,91154.0,0.06832]
[1765158898542,0.00016452,91155.0,91154.0,0.45832]
[1765158899138,0.00016452,91155.0,91154.0,0.16832]
[1765158899742,0.00016452,91155.0,91154.0,0.48932]
[1765158900135,0.00016452,91155.0,91154.0,0.49032]
[1765158900339,0.07864625,91186.0,91154.0,0.49032]
[1765158900340,0.0774168,91177.0,91176.0,0.06732]
[1765158900641,0.0774175,91171.0,91170.0,0.08774]
[1765158901032,0.0109671,91175.0,91174.0,0.06732]
[1765158901244,0.0774152,91190.0,91189.0,0.06732]
[1765158901443,0.0774163,91181.0,91180.0,0.03341]
[1765158901637,0.0774163,91181.0,91180.0,0.00016452]
[1765158902837,0.0774163,91181.0,91180.0,0.03357452]
[1765158903239,0.3474163,91181.0,91180.0,0.00016452]
[1765158903639,0.3504163,91181.0,91180.0,0.00016452]
[1765158903837,0.03222,91167.0,91166.0,0.04022884]
[1765158904040,0.0109686,91162.0,91161.0,0.03341]
[1765158904235,0.06645,91162.0,91154.0,0.04023024]
[1765158904539,0.06645,91155.0,91154.0,0.0782894]
[1765158904839,0.0109695,91154.0,91150.0,0.0782899]
[1765158905040,0.0109704,91147.0,91146.0,0.02926084]
[1765158905343,0.06645,91146.0,91145.0,0.00016452]
[1765158905545,0.49645,91146.0,91145.0,0.00016452]
[1765158905752,0.06645,91131.0,91130.0,0.0782923]
[1765158906050,0.06645,91131.0,91130.0,0.0987123]
[1765158906247,0.03222,91131.0,91130.0,0.0987123]
[1765158906649,0.03222,91136.0,91135.0,0.0782917]
[1765158907651,0.06645,91136.0,91135.0,0.0782917]
[1765158908241,0.06645,91136.0,91135.0,0.0782918]
[1765158908743,0.06645,91136.0,91135.0,0.0832918]
[1765158908942,0.43645,91136.0,91135.0,0.005]
[1765158909143,0.43645,91136.0,91135.0,0.006]
[1765158909343,0.06645,91127.0,91126.0,0.00027435]
[1765158909542,0.07758572,91140.0,91139.0,0.06732]
[1765158909751,0.47758572,91140.0,91139.0,0.06732]
[1765158909952,0.07758572,91140.0,91139.0,0.06732]
[1765158910252,0.07758572,91140.0,91139.0,0.03341]
[1765158910951,0.07858572,91140.0,91139.0,0.03341]
[1765158912146,0.48958572,91140.0,91139.0,0.03341]
[1765158912543,0.07958572,91140.0,91139.0,0.03341]
[1765158912742,0.07958572,91140.0,91139.0,0.06732]
[1765158913148,0.06861452,91140.0,91139.0,0.06732]
[1765158914446,0.05905839,91159.0,91158.0,0.06403]
[1765158914647,0.0623,91150.0,91149.0,0.06403]
[1765158914849,0.0623,91150.0,91149.0,0.03287]
[1765158915548,0.0732693,91157.0,91156.0,0.06403]
[1765158915746,0.0623,91157.0,91156.0,0.06403]
[1765158915944,0.00016452,91159.0,91158.0,0.06403]
[1765158917253,0.03906452,91159.0,91158.0,0.06503]
[1765158918155,0.00716452,91159.0,91158.0,0.06503]
[1765158918460,0.00916452,91159.0,91158.0,0.06503]
[1765158918652,0.10106452,91159.0,91158.0,0.06503]
[1765158919457,0.50146452,91159.0,91158.0,0.03387]
[1765158919761,0.50146452,91159.0,91158.0,0.001]
[1765158920362,0.0623,91141.0,91140.0,0.00016452]
[1765158920662,0.0623,91141.0,91140.0,0.06419452]
[1765158921160,0.0623,91141.0,91140.0,0.00016452]
[1765158921559,0.0623,91141.0,91140.0,0.00116452]
[1765158922262,0.0623,91141.0,91140.0,0.00216452]
[1765158922957,0.0623,91141.0,91140.0,0.03503452]
[1765158923260,0.0623,91141.0,91140.0,0.03403452]
[1765158923458,0.0643,91141.0,91140.0,0.03403452]
[1765158923759,0.0643,91141.0,91140.0,0.06519452]
[1765158923950,0.0339,91141.0,91140.0,0.08545452]
[1765158924153,0.002,91141.0,91140.0,0.08545452]
[1765158924553,0.002,91141.0,91140.0,0.08445452]
[1765158924754,0.0339,91141.0,91140.0,0.08445452]
[1765158925363,0.0319,91141.0,91140.0,0.08445452]
[1765158925561,0.002,91141.0,91140.0,0.08445452]
[1765158925960,0.0428703,91148.0,91147.0,0.06403]
[1765158926155,0.0732703,91148.0,91147.0,0.06403]
[1765158927058,0.0428699,91152.0,91151.0,0.06403]
[1765158927260,0.00016452,91159.0,91158.0,0.06403]
[1765158927963,0.00016452,91159.0,91158.0,0.46403]
[1765158928663,0.00216452,91159.0,91158.0,0.46403]
[1765158929056,0.00216452,91159.0,91158.0,0.20403]
[1765158929459,0.06446452,91159.0,91158.0,0.06403]
[1765158929867,0.07146452,91159.0,91158.0,0.06503]
[1765158930662,0.00916452,91159.0,91158.0,0.42503]
[1765158931764,0.073267,91175.0,91174.0,0.06403]
[1765158932966,0.073267,91175.0,91174.0,0.06503]
[1765158932967,0.087267,91175.0,91174.0,0.06503]
[1765158934071,0.091267,91175.0,91174.0,0.06503]
[1765158935058,0.018,91175.0,91174.0,0.06503]
[1765158935260,0.00016452,91184.0,91183.0,0.074996]
[1765158935261,0.06246452,91184.0,91183.0,0.074996]
[1765158935462,0.0623,91179.0,91178.0,0.0109666]
[1765158935662,0.0623,91175.0,91174.0,0.0759971]
[1765158936265,0.0623,91183.0,91182.0,0.03287]
[1765158936569,0.0623,91179.0,91178.0,0.07003]
[1765158936763,0.0623,91179.0,91178.0,0.006]
[1765158937273,0.0623,91179.0,91178.0,0.03887]
[1765158937663,0.0623,91179.0,91178.0,0.03987]
[1765158937865,0.0623,91179.0,91178.0,0.03387]
[1765158938473,0.0623,91179.0,91178.0,0.06403]
[1765158938775,0.0623,91179.0,91178.0,0.008]
[1765158939773,0.4123,91179.0,91178.0,0.008]
[1765158940772,0.1423,91179.0,91178.0,0.008]
[1765158941073,0.0109666,91178.0,91168.0,0.0109678]
[1765158941675,0.010967,91175.0,91168.0,0.0109678]
[1765158942068,0.0319,91169.0,91168.0,0.0743478]
[1765158942275,0.0319,91169.0,91168.0,0.0813478]
[1765158942664,0.06382,91169.0,91168.0,0.07038]
[1765158942878,0.0653,91166.0,91165.0,0.00016452]
[1765158943172,0.4353,91166.0,91165.0,0.00016452]
[1765158944771,0.4353,91166.0,91165.0,0.00116452]
[1765158944971,0.4353,91166.0,91165.0,0.01616452]
[1765158945664,0.4353,91166.0,91165.0,0.01416452]
[1765158946062,0.4353,91166.0,91165.0,0.01316452]
[1765158947077,0.1353,91166.0,91165.0,0.01316452]
[1765158947577,0.1353,91166.0,91165.0,0.00016452]
[1765158947776,0.4653,91166.0,91165.0,0.01316452]
[1765158948383,0.0853,91166.0,91165.0,0.01216452]
[1765158948764,0.4053,91166.0,91165.0,0.01216452]
[1765158949376,0.0653,91166.0,91165.0,0.04337452]
[1765158949573,0.0653,91166.0,91165.0,0.07388452]
[1765158950080,0.4353,91166.0,91165.0,0.07388452]
[1765158951081,0.4353,91166.0,91165.0,0.01216452]
[1765158953772,0.4353,91166.0,91147.0,0.06047084]
[1765158953773,0.0653,91148.0,91147.0,0.06047084]
[1765158954067,0.0653,91140.0,91139.0,0.06172]
[1765158954275,0.01817,91152.0,91132.0,0.03881961]
[1765158954276,0.0762718,91135.0,91134.0,0.06047084]
[1765158954477,0.0762718,91135.0,91134.0,0.03121]
[1765158955577,0.0762718,91135.0,91134.0,0.05021]
[1765158956077,0.0762718,91135.0,91134.0,0.04821]
[1765158956781,0.0762718,91135.0,91134.0,0.04721]
[1765158956983,0.0762718,91135.0,91134.0,0.04821]
[1765158957283,0.0762718,91135.0,91134.0,0.07872]
[1765158957775,0.0762718,91135.0,91134.0,0.06872]
[1765158957976,0.0653,91135.0,91134.0,0.06872]
[1765158960973,0.0653,91135.0,91134.0,0.007]
[1765158961178,0.4953,91135.0,91134.0,0.007]
[1765158961378,0.4953,91135.0,91126.0,0.00027435]
[1765158961379,0.05912,91127.0,91126.0,0.00027435]
[1765158961578,0.4600928,91127.0,91126.0,0.00027435]
[1765158962087,0.2200928,91127.0,91126.0,0.00027435]
[1765158962977,0.0700928,91127.0,91126.0,0.00027435]
[1765158964178,0.4400928,91127.0,91126.0,0.00027435]
[1765158966474,0.5000928,91127.0,91126.0,0.00027435]
[1765158966887,0.1800928,91127.0,91126.0,0.00027435]
[1765158968676,0.0700916,91137.0,91136.0,0.0593]
[1765158968878,0.05912,91137.0,91136.0,0.0593]
[1765158969980,0.05912,91136.0,91135.0,0.0109717]
[1765158970193,0.05912,91136.0,91135.0,0.0702717]
[1765158971386,0.171,91136.0,91127.0,0.0702727]
[1765158971588,0.05912,91128.0,91127.0,0.0702727]
[1765158972688,0.05912,91128.0,91127.0,0.0593]
[1765158972884,0.0691928,91127.0,91126.0,0.00027435]
[1765158973287,0.4391928,91127.0,91126.0,0.00027435]
[1765158974182,0.4411928,91127.0,91126.0,0.00027435]
[1765158974382,0.0711928,91127.0,91126.0,0.00027435]
[1765158974582,0.1291928,91127.0,91126.0,0.02946435]
[1765158974782,0.4611928,91127.0,91126.0,0.02946435]
[1765158976191,0.4611928,91127.0,91126.0,0.00027435]
[1765158978197,0.4611928,91127.0,91100.0,0.0677011]
[1765158978198,0.01817,91107.0,91102.0,0.02926084]
[1765158978389,0.01817,91107.0,91089.0,0.03881961]
[1765158978390,0.05822,91097.0,91089.0,0.03881961]
[1765158978591,0.05822,91097.0,91080.0,0.0296984]
[1765158978592,0.43822,91097.0,91080.0,0.0973995]
[1765158979093,0.43822,91097.0,91085.0,0.0109778]
[1765158979286,0.05822,91097.0,91087.0,0.06786572]
[1765158979488,0.05822,91097.0,91087.0,0.01114212]
[1765158979792,0.42822,91097.0,91087.0,0.00016462]
[1765158980094,0.43222,91097.0,91087.0,0.00016462]
[1765158980283,0.66058,91097.0,91087.0,0.00016462]
[1765158980482,0.15222,91097.0,91096.0,0.02931275]
[1765158980689,0.6777,91097.0,91096.0,0.00012275]
[1765158981087,0.05822,91088.0,91087.0,0.05939462]
[1765158982193,0.05832035,91088.0,91087.0,0.05939462]
[1765158982488,0.03045035,91088.0,91087.0,0.05939462]
[1765158982697,0.00010035,91088.0,91087.0,0.06139462]
[1765158983590,0.00010035,91088.0,91087.0,0.43939462]
[1765158983790,0.00010035,91088.0,91087.0,0.44039462]
[1765158983984,0.00010035,91088.0,91087.0,0.44139462]
[1765158984790,0.00010035,91088.0,91087.0,0.06139462]
[1765158984986,0.05832035,91088.0,91087.0,0.00216462]
[1765158985296,0.40832035,91088.0,91087.0,0.00316462]
[1765158985990,0.40832035,91088.0,91087.0,0.00616462]
[1765158986395,0.40832035,91088.0,91087.0,0.00716462]
[1765158986592,0.40832035,91088.0,91087.0,0.03635462]
[1765158987092,0.40832035,91088.0,91087.0,0.00716462]
[1765158987488,0.00010035,91088.0,91087.0,0.06639462]
[1765158989289,0.05832035,91088.0,91087.0,0.06639462]
[1765158989592,0.46832035,91088.0,91087.0,0.06639462]
[1765158989898,0.46832035,91088.0,91087.0,0.00716462]
[1765158990697,0.27832035,91088.0,91087.0,0.00716462]
[1765158990992,0.05832035,91088.0,91087.0,0.04733222]
[1765158991194,0.05832035,91088.0,91087.0,0.06639462]
[1765158991797,0.43832035,91088.0,91087.0,0.06639462]
[1765158991996,0.43832035,91088.0,91087.0,0.00716462]
[1765158993495,0.14832035,91088.0,91087.0,0.00716462]
[1765158993896,0.40832035,91088.0,91087.0,0.00716462]
[1765158994695,0.0691976,91087.0,91071.0,0.0109795]
[1765158994899,0.05822,91063.0,91062.0,0.01872]
[1765158995096,0.0275285,91080.0,91061.0,0.0109806]
[1765158995097,0.05822,91062.0,91061.0,0.0702106]
[1765158995295,0.05832091,91062.0,91061.0,0.0702106]
[1765158996202,0.00010091,91062.0,91061.0,0.0702106]
[1765158996604,0.00110091,91062.0,91061.0,0.0842106]
[1765158997797,0.00110091,91062.0,91061.0,0.07323]
[1765158998194,0.06132091,91062.0,91061.0,0.10223]
[1765158999305,0.06032091,91062.0,91061.0,0.08823]
[1765158999497,0.36032091,91062.0,91061.0,0.031]
[1765159000102,0.11032091,91062.0,91061.0,0.06019]
[1765159000600,0.06032091,91062.0,91061.0,0.09023]
[1765159000809,0.00110091,91062.0,91061.0,0.06123]
[1765159002003,0.05980091,91062.0,91061.0,0.06123]
[1765159002206,0.00110091,91062.0,91061.0,0.06123]
[1765159002592,0.00110091,91062.0,91061.0,0.46123]
[1765159004700,0.00110091,91062.0,91061.0,0.06123]
[1765159006511,0.43371091,91062.0,91061.0,0.002]
[1765159008512,0.43371091,91062.0,91047.0,0.0109824]
[1765159008714,0.43371091,91062.0,91046.0,0.00027459]
[1765159008715,0.0689824,91047.0,91046.0,0.00027459]
[1765159008915,0.2590648,91047.0,91046.0,0.00027459]
[1765159009104,0.2290648,91047.0,91046.0,0.00027459]
[1765159010024,0.0690648,91047.0,91046.0,0.02855459]
[1765159010208,0.0690648,91047.0,91046.0,0.05614459]
[1765159010514,0.0690648,91047.0,91046.0,0.05714459]
[1765159011515,0.4990648,91047.0,91046.0,0.00427459]
[1765159012609,0.0689837,91036.0,91035.0,0.00011771]
[1765159012810,0.06910645,91036.0,91035.0,0.00011771]
[1765159013016,0.48910645,91036.0,91035.0,0.00011771]
[1765159014218,0.15910645,91036.0,91035.0,0.03339771]
[1765159014616,0.47910645,91036.0,91035.0,0.03339771]
[1765159014924,0.47910645,91036.0,91035.0,0.00511771]
[1765159016207,0.47910645,91036.0,91031.0,0.05]
[1765159016208,0.0689842,91032.0,91031.0,0.04613816]
[1765159016517,0.0689842,91032.0,91006.0,0.05008152]
[1765159016518,0.0689865,91014.0,91013.0,0.05587]
[1765159017417,0.02978471,91014.0,91013.0,0.05587]
[1765159017623,0.00013471,91014.0,91013.0,0.05587]
[1765159017918,0.01112111,91014.0,91013.0,0.05587]
[1765159018116,0.07347111,91014.0,91013.0,0.013]
[1765159018423,0.47647111,91014.0,91013.0,0.045]
[1765159018923,0.21647111,91014.0,91013.0,0.045]
[1765159019120,0.07647111,91014.0,91013.0,0.10647]
[1765159019921,0.06548471,91014.0,91013.0,0.10647]
[1765159020221,0.07647111,91014.0,91013.0,0.07292]
[1765159020425,0.07647111,91014.0,91013.0,0.09947]
[1765159020626,0.07647111,91014.0,91013.0,0.06792]
[1765159021028,0.07247111,91014.0,91013.0,0.06447]
[1765159021322,0.06148471,91014.0,91013.0,0.06447]
[1765159021524,0.36284471,91014.0,91013.0,0.003]
[1765159021726,0.06135,90984.0,90983.0,0.03881961]
[1765159021927,0.06135,90967.0,90966.0,0.06174483]
[1765159022120,0.06135,90967.0,90966.0,0.00027483]
[1765159022321,0.46148504,90967.0,90966.0,0.00027483]
[1765159022514,0.06148504,90967.0,90966.0,0.03019483]
[1765159022733,0.49148504,90967.0,90966.0,0.00027483]
[1765159023236,0.0109927,90963.0,90930.0,0.12473607]
[1765159023433,0.03039,90946.0,90945.0,0.07939]
[1765159023636,0.06135,90946.0,90945.0,0.06147]
[1765159023833,0.03039,90946.0,90945.0,0.06147]
[1765159024331,9.334e-05,90946.0,90945.0,0.09947]
[1765159024840,0.00209334,90946.0,90945.0,0.07747]
[1765159025137,0.00609334,90946.0,90945.0,0.11547]
[1765159025354,0.14820334,90946.0,90926.0,0.01819495]
[1765159025635,0.06135,90939.0,90938.0,0.06147]
[1765159025832,0.42009654,90939.0,90938.0,0.06147]
[1765159026146,9.654e-05,90939.0,90938.0,0.06147]
[1765159026438,0.43144654,90939.0,90926.0,0.01819495]
[1765159026630,0.43144654,90939.0,90938.0,0.02992]
[1765159026832,0.19144654,90939.0,90938.0,0.06147]
[1765159027136,0.03448654,90939.0,90938.0,0.09947]
[1765159027433,0.06544654,90939.0,90938.0,0.10147]
[1765159027635,0.06144654,90939.0,90938.0,0.06347]
[1765159027829,0.06244654,90939.0,90938.0,0.06347]
[1765159028034,0.00109654,90939.0,90938.0,0.06347]
[1765159028344,0.45244654,90939.0,90938.0,0.002]
[1765159028734,0.27244654,90939.0,90938.0,0.002]
[1765159031140,0.27244654,90939.0,90938.0,0.03192]
[1765159031337,0.27244654,90939.0,90938.0,0.06347]
[1765159031729,0.00109654,90939.0,90938.0,0.06347]
[1765159032929,0.0109926,90963.0,90942.0,0.0109951]
[1765159033134,0.4209926,90963.0,90950.0,0.11373967]
[1765159033731,0.4361426,90963.0,90962.0,0.02984]
[1765159033936,0.43624126,90963.0,90962.0,0.02984]
[1765159034136,0.43624126,90963.0,90953.0,0.00016493]
[1765159034338,0.06515,90954.0,90953.0,0.03000493]
[1765159034745,0.10124866,90963.0,90962.0,0.02984]
[1765159035035,0.10824866,90963.0,90962.0,0.02984]
[1765159035242,0.0109927,90962.0,90953.0,0.00016493]
[1765159035445,0.06515,90954.0,90953.0,0.06417493]
[1765159035639,0.06515,90954.0,90953.0,0.00016493]
[1765159035640,0.48527281,90954.0,90953.0,0.00016493]
[1765159035836,0.42012281,90954.0,90925.0,0.010997]
[1765159036039,0.0109955,90939.0,90925.0,0.010997]
[1765159036245,0.00013634,90938.0,90927.0,0.0109969]
[1765159036549,0.06528634,90938.0,90937.0,0.06401]
[1765159036929,0.00013634,90938.0,90937.0,0.08279]
[1765159037339,0.06528634,90938.0,90937.0,0.08279]
[1765159037646,0.09928634,90938.0,90937.0,0.06401]
[1765159037945,0.09928634,90938.0,90937.0,0.08279]
[1765159038443,0.03513634,90938.0,90937.0,0.08279]
[1765159039143,0.03413634,90938.0,90937.0,0.08279]
[1765159039344,0.03513634,90938.0,90937.0,0.08379]
[1765159041838,0.03513634,90938.0,90937.0,0.0947857]
[1765159042043,0.0761469,90927.0,90926.0,0.00027495]
[1765159042345,0.4361469,90927.0,90926.0,0.00027495]
[1765159042547,0.0761469,90927.0,90926.0,0.06428495]
[1765159042736,0.03189,90932.0,90931.0,0.06401]
[1765159043137,0.0109958,90937.0,90926.0,0.01905495]
[1765159043138,0.0428858,90937.0,90936.0,0.06401]
[1765159043349,0.0428858,90937.0,90926.0,0.01905495]
[1765159043350,0.00013634,90938.0,90937.0,0.08279]
[1765159045045,0.00013634,90938.0,90937.0,0.50279]
[1765159045352,0.03413634,90938.0,90937.0,0.18279]
[1765159046051,0.03413634,90938.0,90937.0,0.38279]
[1765159046349,0.00016493,90947.0,90946.0,0.06401]
[1765159046546,0.0761422,90967.0,90966.0,0.06401]
[1765159046743,0.06613526,90967.0,90966.0,0.06401]
[1765159047045,0.0761422,90967.0,90966.0,0.06401]
[1765159047249,0.09942307,90967.0,90966.0,0.06401]
[1765159047451,0.09952908,90967.0,90966.0,0.06401]
[1765159048344,0.06515,90958.0,90957.0,0.00016493]
[1765159048546,0.0761445,90947.0,90946.0,0.001]
[1765159048851,0.25053624,90947.0,90946.0,0.005]
[1765159049043,0.12053624,90947.0,90946.0,3.27e-05]
[1765159049443,0.12053624,90947.0,90941.0,0.02984]
[1765159049444,0.0428852,90942.0,90941.0,0.02984]
[1765159049645,0.0428856,90939.0,90938.0,0.02984]